[Event "19th Bangkok Open 2019"]
[Site "Bangkok"]
[Date "2019.04.13"]
[Round "8.11"]
[White "Sriram, Jha"]
[Black "Habla, Jony"]
[Result "1/2-1/2"]
[ECO "D38"]
[WhiteElo "2381"]
[BlackElo "2146"]
[Annotator "NA"]
[PlyCount "203"]
[EventDate "2019.04.06"]
[EventType "swiss"]
[EventCountry "THA"]
[SourceTitle "playchess.com"]
[Source "ChessBase"]
[SourceQuality "1"]
[TimeControl "40/5400+30:1800+30"]

1. d4 {[%emt 0:03:55]} d5 {[%emt 0:02:18]} 2. c4 {[%emt 0:00:08]} e6 {[%emt 0:00:07]} 3. Nc3 {[%emt 0:00:07]} Bb4 {[%emt 0:02:33]} 4. Nf3 {[%emt 0:01:15]} Nf6 {[%emt 0:00:41]} 5. Qa4+ {[%emt 0:00:10]} Nc6 {[%emt 0:00:20]} 6. e3 {[%emt 0:00:13]} O-O {[%emt 0:03:53]} 7. Qc2 {[%emt 0:00:10] D38: Queen's Gambit Declined: Ragozin Defence (4 Nf3 Bb4)} dxc4 {[%emt 0:00:29]} 8. Bxc4 {[%emt 0:00:06]} e5 {[%emt 0:00:15]} 9. dxe5 {[%emt 0:23:42]} Ng4 {[%emt 0:03:00] LiveBook: 7 Games} 10. Bd2 $146 {[%emt 0:01:40]} ({Predecessor:} 10. O-O Ngxe5 11. Nxe5 Nxe5 12. Be2 Bg4 13. f3 Bd7 14. a3 Bd6 {1-0 (28) Shirov,A (2696)-Hou,Y (2609) Tromsoe 2013}) 10... Ngxe5 {[%emt 0:00:30]} 11. Be2 {[%emt 0:00:15]} Be6 {[%emt 0:15:42]} 12. O-O {[%emt 0:18:44]} Re8 {[%emt 0:26:05]} 13. Rfd1 {[%emt 0:03:50]} Bf8 {[%emt 0:12:51]} 14. Nb5 {[%emt 0:09:10]} Nd7 {[%emt 0:17:15]} 15. Bc3 {[%emt 0:03:09]} a6 {[%emt 0:01:32]} 16. Nbd4 {[%emt 0:00:42]} Nxd4 {[%emt 0:00:17]} 17. Nxd4 {[%emt 0:00:17]} Bd6 {[%emt 0:01:49]} 18. Nf5 {[%emt 0:07:03]} Bxf5 {[%emt 0:00:17]} 19. Qxf5 {[%emt 0:00:01]} Qe7 {[%emt 0:01:01]} 20. g3 {[%emt 0:09:59]} Nf8 {[%emt 0:00:44]} 21. Bf3 {[%emt 0:00:39]} Rab8 {[%emt 0:01:42]} 22. Rac1 {[%emt 0:01:07]} Qe6 {[%emt 0:00:34]} 23. Qg5 {[%emt 0:00:42]} Qg6 {[%emt 0:00:17]} 24. Qh4 {[%emt 0:00:37]} Be7 {[%emt 0:02:31]} 25. Qc4 {[%emt 0:01:11]} Bd6 {[%emt 0:00:06]} 26. a3 {[%emt 0:03:11]} Ne6 {[%emt 0:00:58]} 27. Bg2 {[%emt 0:02:16]} Ng5 {[%emt 0:00:52]} 28. Rd5 {[%emt 0:02:18]} Ne4 {[%emt 0:00:25]} 29. Be1 {[%emt 0:01:43]} Nf6 {[%emt 0:00:27]} 30. Rdd1 {[%emt 0:00:23]} Qf5 {[%emt 0:00:24]} 31. Qc2 {[%emt 0:01:16]} Qh5 {[%emt 0:00:15]} 32. h3 {[%emt 0:00:38]} Re6 {[%emt 0:01:21]} 33. Rd4 {[%emt 0:01:39]} Qb5 {[%emt 0:01:05]} 34. b4 {[%emt 0:01:32]} Qe8 {[%emt 0:00:49]} 35. Rh4 {[%emt 0:00:38]} g6 {[%emt 0:00:21]} 36. Bc3 {[%emt 0:00:29]} c6 {[%emt 0:00:19]} 37. Rd1 {[%emt 0:01:04]} Qe7 {[%emt 0:01:02]} 38. Rc4 {[%emt 0:00:45]} Re8 {[%emt 0:00:18]} 39. Qb2 {[%emt 0:00:43]} Be5 {[%emt 0:00:47]} 40. Bxe5 {[%emt 0:00:00]} Rxe5 {[%emt 0:00:00]} 41. Rcd4 {[%emt 0:00:58]} h5 {[%emt 0:00:37]} 42. Rd6 {[%emt 0:04:12]} Kh7 {[%emt 0:02:48]} 43. R6d4 {[%emt 0:02:48]} Kg8 {[%emt 0:01:34]} 44. Qc3 {[%emt 0:01:27]} Kh7 {[%emt 0:00:53]} 45. R1d3 {[%emt 0:02:17]} Kg8 {[%emt 0:00:23]} 46. Rd6 {[%emt 0:01:11]} Kh7 {[%emt 0:00:20]} 47. R3d4 {[%emt 0:00:33]} Rf8 {[%emt 0:04:44]} 48. Rd3 {[%emt 0:10:14]} Nd5 {[%emt 0:01:26]} 49. Bxd5 {[%emt 0:00:48]} Qxd6 {[%emt 0:01:11]} 50. Bxc6 {[%emt 0:00:07]} Qc7 {[%emt 0:07:58]} 51. Bxb7 {[%emt 0:00:25]} Qxc3 {[%emt 0:02:12]} 52. Rxc3 {[%emt 0:00:00]} a5 {[%emt 0:00:52]} 53. Bc6 {[%emt 0:03:38]} axb4 {[%emt 0:02:27]} 54. axb4 {[%emt 0:00:00]} Rb8 {[%emt 0:02:35]} 55. Rc4 {[%emt 0:00:28]} Kg7 {[%emt 0:00:42]} 56. Kg2 {[%emt 0:00:35]} Re6 {[%emt 0:00:29]} 57. b5 {[%emt 0:01:04]} Re5 {[%emt 0:00:15]} 58. Rd4 {[%emt 0:02:26]} Kf6 {[%emt 0:00:47]} 59. Rb4 {[%emt 0:00:59]} Rc5 {[%emt 0:00:38]} 60. Rf4+ {[%emt 0:00:01]} Ke6 {[%emt 0:01:06]} 61. Rd4 {[%emt 0:00:21]} Rc2 {[%emt 0:00:30]} 62. g4 {[%emt 0:00:48]} hxg4 {[%emt 0:00:40]} 63. hxg4 {[%emt 0:00:01]} Rb2 {[%emt 0:03:26]} 64. Bd5+ {[%emt 0:00:52]} Ke7 {[%emt 0:00:12]} 65. Re4+ {[%emt 0:00:25]} Kd6 {[%emt 0:04:46]} 66. Bxf7 {[%emt 0:00:31]} g5 {[%emt 0:00:24]} 67. Be8 {[%emt 0:01:29]} Ra8 {[%emt 0:00:53]} 68. Kg3 {[%emt 0:01:32]} Raa2 {[%emt 0:00:01]} 69. Bf7 {[%emt 0:00:05]} Ra1 {[%emt 0:00:35]} 70. Rd4+ {[%emt 0:02:37]} Ke7 {[%emt 0:00:25]} 71. Bc4 {[%emt 0:00:27]} Ra4 {[%emt 0:00:52]} 72. Kf3 {[%emt 0:01:13]} Rbb4 {[%emt 0:00:19]} 73. Re4+ {[%emt 0:00:04]} Kd6 {[%emt 0:00:41]} 74. Bd3 {[%emt 0:00:03]} Rxe4 {[%emt 0:00:37]} 75. Bxe4 {[%emt 0:00:00]} Rb4 {[%emt 0:00:28]} 76. Bc6 {[%emt 0:00:36]} Rb2 {[%emt 0:00:51]} 77. Kg3 {[%emt 0:00:27]} Rb3 {[%emt 0:00:18]} 78. Kf3 {[%emt 0:01:04]} Rb2 {[%emt 0:00:08]} 79. Kg2 {[%emt 0:00:28]} Rb4 {[%emt 0:00:50]} 80. f3 {[%emt 0:01:14]} Rb2+ {[%emt 0:00:18]} 81. Kf1 {[%emt 0:01:00]} Kc5 {[%emt 0:00:27]} 82. Ke1 {[%emt 0:01:08]} Ra2 {[%emt 0:00:21]} 83. Bd7 {[%emt 0:00:51]} Rb2 {[%emt 0:00:30]} 84. Kf1 {[%emt 0:00:54]} Kd6 {[%emt 0:00:12]} 85. Be8 {[%emt 0:00:07]} Ke7 {[%emt 0:00:19]} 86. Bc6 {[%emt 0:00:01]} Kd6 {[%emt 0:00:07]} 87. Ke1 {[%emt 0:00:08]} Kc5 {[%emt 0:00:12]} 88. Be8 {[%emt 0:00:28]} Ra2 {[%emt 0:00:40]} 89. Bc6 {[%emt 0:00:50]} Rb2 {[%emt 0:00:06]} 90. Kd1 {[%emt 0:00:48]} Rf2 {[%emt 0:00:54]} 91. Ke1 {[%emt 0:00:42]} Rb2 {[%emt 0:00:06]} 92. f4 {[%emt 0:00:46]} gxf4 {[%emt 0:00:17]} 93. exf4 {[%emt 0:00:01]} Rb4 {[%emt 0:00:14]} 94. Kf2 {[%emt 0:00:07]} Rxf4+ {[%emt 0:00:18] Double Attack} 95. Kg3 {[%emt 0:00:00]} Rb4 {[%emt 0:01:06]} 96. Kh4 {[%emt 0:00:13]} Kd6 $11 {[%emt 0:00:08]} 97. Kh5 {[%emt 0:00:21]} Ke6 {[%emt 0:02:31]} 98. g5 {[%emt 0:00:59]} Kf7 {[%emt 0:00:16]} 99. Bd5+ {[%emt 0:00:44]} Kg7 {[%emt 0:00:12]} 100. Bc6 {[%emt 0:00:04]} Kf7 {[%emt 0:00:31]} 101. Bd5+ {[%emt 0:00:59]} Kg7 {[%emt 0:00:07]} 102. Bc6 {[%emt 0:03:54]} 1/2-1/2

[Event "19th Bangkok Open 2019"]
[Site "Bangkok"]
[Date "2019.04.13"]
[Round "8.12"]
[White "Damia, Angelo"]
[Black "Vijayalakshmi, Subbaraman"]
[Result "1/2-1/2"]
[ECO "B33"]
[WhiteElo "2215"]
[BlackElo "2345"]
[Annotator "NA"]
[PlyCount "102"]
[EventDate "2019.04.06"]
[EventType "swiss"]
[EventCountry "THA"]
[SourceTitle "playchess.com"]
[Source "ChessBase"]
[SourceQuality "1"]
[TimeControl "40/5400+30:1800+30"]

{[%evp 8,102,24,27,17,22,28,18,48,38,39,45,66,26,23,2,7,0,7,0,17,-22,26,-58,-60,-61,-21,32767,32767,32767,32767,0,21,-33,46,-2,-4,-7,0,0,0,0,0,0,0,32767,32767,-8,-16,-8,32767,32767,32767,32767,32767,32767,32767,-259,32767,32767,32767,32767,32767,32767,32767,32767,32767,32767,32767,32767,32767,32767,32767,32767,-82,32767,32767,32767,32767,32767,32767,-112,32767,32767,32767,32767,32767,32767,32767,32767,0,0,0,0,0,0,0]} 1. e4 {[%emt 0:03:38]} c5 {[%emt 0:11:18]} 2. Nf3 {[%emt 0:00:28]} Nc6 {[%emt 0:00:44]} 3. d4 {[%emt 0:00:08]} cxd4 {[%emt 0:00:05]} 4. Nxd4 {[%emt 0:00:04]} e5 {[%emt 0:00:06]} 5. Nb5 {[%emt 0:00:05]} d6 {[%emt 0:00:11] LiveBook: 4879 Games} 6. N1c3 {[%emt 0:01:16]} a6 {[%emt 0:00:15]} 7. Na3 {[%emt 0:00:05]} Nf6 {[%emt 0:01:07]} 8. Bg5 {[%emt 0:00:29]} Be6 {[%emt 0:01:34]} 9. Nc4 {[%emt 0:03:10]} b5 {[%emt 0:00:32]} 10. Ne3 {[%emt 0:00:05] B33: Sicilian: Pelikan and Sveshnikov Variations} Be7 $1 {[%emt 0:00:42]} 11. a4 {[%emt 0:03:44]} b4 {[%emt 0:02:58]} 12. Bxf6 $1 {[%emt 0:00:06]} Bxf6 {[%emt 0:10:42]} 13. Ncd5 {[%emt 0:01:28]} Bg5 {[%emt 0:00:19] [#]} 14. h4 $146 {[%emt 0:12:35]} ({Predecessor:} 14. Bd3 O-O 15. h4 Bxe3 16. Nxe3 Ne7 17. Qf3 Qd7 {½-½ (27) Fedorov,A (2616)-Somkin,E (2387) Izhevsk 2010}) 14... Bxh4 {[%emt 0:04:20]} (14... Bxe3 $1 $15 15. Nxe3 O-O) 15. Rxh4 {[%emt 0:00:04]} ({White should play} 15. Nf5 $11 Bxf5 16. exf5) 15... Qxh4 {[%emt 0:00:15]} 16. Nc7+ {[%emt 0:00:04]} Kd7 {[%emt 0:05:52]} 17. Nxa8 {[%emt 0:01:19]} Rxa8 {[%emt 0:00:07]} 18. Qd3 {[%emt 0:00:42]} Qd8 {[%emt 0:07:00]} 19. Rd1 $1 {[%emt 0:05:28]} Ke7 {[%emt 0:01:42]} ({Better is} 19... Qc7 $15) 20. Nd5+ {[%emt 0:04:34]} Bxd5 {[%emt 0:04:43]} (20... Ke8 $15) 21. exd5 {[%emt 0:00:16]} ({White should try} 21. Qxd5 $14 Na5 {[#]} 22. f4 $1 {[%mdl 512]} exf4 23. e5) 21... Nd4 {[%emt 0:01:01]} 22. Qxh7 {[%emt 0:00:36]} Qa5 {[%emt 0:08:28]} 23. Bd3 {[%emt 0:05:14]} Qxd5 {[%emt 0:06:49] Remove Defender} 24. Qxg7 {[%emt 0:05:01]} Ne6 {[%emt 0:07:41]} 25. Qg4 {[%emt 0:04:09]} Rh8 {[%emt 0:04:58]} 26. Qe4 {[%emt 0:00:42]} Qc5 {[%emt 0:03:29]} 27. Bxa6 {[%emt 0:05:05]} Rh1+ {[%emt 0:01:47]} 28. Bf1 {[%emt 0:00:05]} Nd4 {[%emt 0:02:58]} 29. Rxd4 {[%emt 0:00:40]} Qxd4 {[%emt 0:00:05]} 30. Qxd4 {[%emt 0:00:07]} exd4 {[%emt 0:00:03]} 31. b3 {[%emt 0:00:09]} Ke6 {[%emt 0:01:42]} 32. a5 {[%emt 0:04:52]} Ke5 {[%emt 0:04:12]} 33. f4+ {[%emt 0:06:32]} Kxf4 {[%emt 0:00:59]} 34. Kf2 {[%emt 0:00:14]} f6 {[%emt 0:02:55]} 35. a6 {[%emt 0:00:37]} Rh7 {[%emt 0:01:20]} 36. g3+ {[%emt 0:02:43]} Ke5 {[%emt 0:00:05]} 37. Kf3 {[%emt 0:01:43]} Rc7 {[%emt 0:01:06]} 38. Bd3 {[%emt 0:00:08]} Rc5 {[%emt 0:00:24]} 39. Kg4 {[%emt 0:01:24]} Ra5 {[%emt 0:00:06]} 40. Kh5 {[%emt 0:00:00] [#]} Ra1 {[%emt 0:00:00]} (40... Ke6+ $142 $1 41. Kh6 Kd7) 41. Kg6 {[%emt 0:01:39]} Ke6 {[%emt 0:01:28]} 42. Bc4+ {[%emt 0:10:30]} d5 {[%emt 0:02:39]} 43. Bd3 {[%emt 0:00:07]} Rg1 {[%emt 0:00:55]} 44. Bf5+ {[%emt 0:03:38]} Ke5 {[%emt 0:02:25]} 45. g4 {[%emt 0:04:00]} d3 {[%emt 0:00:34]} 46. Bxd3 {[%emt 0:00:18]} Rxg4+ {[%emt 0:00:16]} 47. Kf7 {[%emt 0:00:02]} Rg1 {[%emt 0:00:13]} 48. Bb5 {[%emt 0:00:03]} Rh1 {[%emt 0:02:17]} 49. Kg7 {[%emt 0:05:24]} Rg1+ {[%emt 0:00:26]} 50. Kf8 {[%emt 0:00:50]} Rh1 {[%emt 0:01:54]} 51. Kg7 {[%emt 0:02:09]} Rg1+ $11 {[%emt 0:00:30]} (51... Ra1 $5 52. Ba4 $8 Rg1+ 53. Kf8 Rh1 $11) 1/2-1/2

[Event "19th Bangkok Open 2019"]
[Site "Bangkok"]
[Date "2019.04.14"]
[Round "9.9"]
[White "Habla, Jony"]
[Black "Ly, Moulthun"]
[Result "0-1"]
[ECO "E90"]
[WhiteElo "2146"]
[BlackElo "2490"]
[Annotator "ChessBase"]
[PlyCount "149"]
[EventDate "2019.04.06"]
[EventType "swiss"]
[EventCountry "THA"]
[SourceTitle "playchess.com"]
[Source "ChessBase"]
[SourceQuality "1"]
[TimeControl "40/5400+30:1800+30"]

1. d4 {[%emt 0:00:52]} g6 {[%emt 0:00:00]} 2. c4 {[%emt 0:00:08]} Bg7 {[%emt 0:00:00]} 3. Nc3 {[%emt 0:00:19]} d6 {[%emt 0:00:12]} 4. e4 {[%emt 0:02:09]} Nf6 {[%emt 0:00:16]} 5. h3 {[%emt 0:03:41]} O-O {[%emt 0:00:10]} 6. Nf3 {[%emt 0:00:19]} e5 {[%emt 0:00:08]} 7. d5 {[%emt 0:00:49]} Na6 {[%emt 0:00:44]} 8. Bg5 {[%emt 0:05:03]} Qe8 {[%emt 0:01:31]} 9. Be2 {[%emt 0:06:19]} Nh5 {[%emt 0:03:10]} 10. g3 {[%emt 0:08:51]} f5 {[%emt 0:01:54]} 11. exf5 {[%emt 0:04:24]} gxf5 {[%emt 0:02:15]} 12. Nh4 {[%emt 0:08:18]} Nf6 {[%emt 0:00:12]} 13. Qc2 {[%emt 0:11:38]} Nb4 {[%emt 0:10:59]} 14. Qd2 {[%emt 0:03:37]} a5 {[%emt 0:00:18]} 15. a3 {[%emt 0:17:02]} Na6 {[%emt 0:00:35]} 16. Qc2 {[%emt 0:00:11]} Nc5 {[%emt 0:02:39]} 17. Be3 {[%emt 0:03:55]} e4 {[%emt 0:16:48]} 18. Ng2 {[%emt 0:03:39]} Nfd7 {[%emt 0:01:36]} 19. Nf4 {[%emt 0:00:47]} Ne5 {[%emt 0:00:12]} 20. Rd1 {[%emt 0:03:05]} Bd7 {[%emt 0:06:38]} 21. O-O {[%emt 0:00:54]} Ng6 {[%emt 0:02:17]} 22. Bh5 {[%emt 0:00:42]} Be5 {[%emt 0:00:38]} 23. Kh1 {[%emt 0:03:19]} Qf7 {[%emt 0:00:26]} 24. Rg1 {[%emt 0:01:30]} Qg7 {[%emt 0:00:15]} 25. Qe2 {[%emt 0:06:20]} Kh8 {[%emt 0:01:39]} 26. Nb5 {[%emt 0:00:42]} c6 {[%emt 0:07:41]} 27. Nc3 {[%emt 0:02:33]} Rf7 {[%emt 0:12:48]} 28. Rg2 {[%emt 0:00:59]} Rg8 {[%emt 0:00:12]} 29. Rdg1 {[%emt 0:00:38]} Qf6 {[%emt 0:00:08]} 30. Bxg6 {[%emt 0:01:04]} hxg6 {[%emt 0:00:10]} 31. h4 {[%emt 0:00:32]} Rh7 {[%emt 0:01:33]} 32. Rh2 {[%emt 0:00:23]} Nb3 {[%emt 0:03:08]} 33. Qd1 {[%emt 0:01:09]} Nd4 {[%emt 0:01:28]} 34. Bxd4 {[%emt 0:00:25]} Bxd4 {[%emt 0:00:03]} 35. Nh3 {[%emt 0:00:12]} e3 {[%emt 0:12:15]} 36. fxe3 {[%emt 0:00:47]} Bxe3 {[%emt 0:00:07]} 37. Rf1 {[%emt 0:00:12]} Re7 {[%emt 0:03:59]} 38. Qf3 {[%emt 0:00:31]} Rge8 {[%emt 0:01:14]} 39. Re2 {[%emt 0:00:51]} Bd4 {[%emt 0:02:42]} 40. Rfe1 {[%emt 0:00:00]} Rxe2 {[%emt 0:00:00]} 41. Rxe2 {[%emt 0:00:44]} Rxe2 {[%emt 0:07:13]} 42. Qxe2 {[%emt 0:07:26]} Qe5 {[%emt 0:01:08]} 43. Nf4 {[%emt 0:01:04]} Kg7 {[%emt 0:00:44]} 44. Kg2 {[%emt 0:03:37]} Kf7 {[%emt 0:03:41]} 45. Qd3 {[%emt 0:00:40]} Be3 {[%emt 0:01:37]} 46. Nfe2 {[%emt 0:04:02]} Bc5 {[%emt 0:04:11]} 47. a4 {[%emt 0:02:02]} Be3 {[%emt 0:01:25]} 48. Kf3 {[%emt 0:00:41]} Bh6 {[%emt 0:00:11]} 49. Kf2 {[%emt 0:00:41]} Ke7 {[%emt 0:00:57]} 50. Kf3 {[%emt 0:00:46]} Kd8 {[%emt 0:00:13]} 51. Kf2 {[%emt 0:01:13]} Kc7 {[%emt 0:00:08]} 52. b3 {[%emt 0:03:35]} f4 {[%emt 0:05:46]} 53. gxf4 {[%emt 0:03:24]} Bxf4 {[%emt 0:01:41]} 54. Qe4 {[%emt 0:01:27]} Qxe4 {[%emt 0:00:09]} 55. Nxe4 {[%emt 0:00:06]} Be5 {[%emt 0:00:05]} 56. Kf3 {[%emt 0:01:50]} Bf5 {[%emt 0:01:06]} 57. Nf4 {[%emt 0:00:29]} Kb6 {[%emt 0:04:19]} 58. Ke3 {[%emt 0:00:32]} Bxf4+ {[%emt 0:06:03]} 59. Kxf4 {[%emt 0:00:07]} cxd5 {[%emt 0:00:22]} 60. Nxd6 {[%emt 0:02:38]} Bc2 {[%emt 0:00:09]} 61. cxd5 {[%emt 0:00:13]} Bxb3 {[%emt 0:00:08]} 62. Ke5 {[%emt 0:00:11]} Bxa4 {[%emt 0:00:48]} 63. Nc4+ {[%emt 0:00:37]} Kb5 {[%emt 0:00:33]} 64. Nb2 {[%emt 0:00:08]} Bb3 {[%emt 0:00:39]} 65. Nd3 {[%emt 0:03:16]} b6 {[%emt 0:03:33]} 66. Kd4 {[%emt 0:00:13]} a4 {[%emt 0:00:53]} 67. d6 {[%emt 0:01:35]} Kc6 {[%emt 0:01:17]} 68. Ne5+ {[%emt 0:01:02]} Kxd6 {[%emt 0:00:07]} 69. Nxg6 {[%emt 0:00:06]} b5 {[%emt 0:00:28]} 70. Nf4 {[%emt 0:00:25]} a3 {[%emt 0:00:46]} 71. Kc3 {[%emt 0:00:28]} Bc4 {[%emt 0:00:13]} 72. h5 {[%emt 0:00:54]} b4+ {[%emt 0:00:19]} 73. Kc2 {[%emt 0:00:54]} b3+ {[%emt 0:00:11]} 74. Kc3 {[%emt 0:00:29]} b2 {[%emt 0:00:33]} 75. Kd4 {[%emt 0:01:06] Ke5+} 0-1